fUST/lending_fUST_20251011
["ID","MTS","AMOUNT","RATE_DAILY","PERIOD"]
[390690097,1760122233699,-500.0,0.00022999,2]
[390690099,1760122233709,-578.5967875,0.00022999,2]
[390690101,1760122233719,-500.0,0.00022999,2]
[390690103,1760122233728,-500.0,0.00022999,2]
[390690105,1760122233737,-500.0,0.00022999,2]
[390690107,1760122233750,-500.0,0.00022999,2]
[390690109,1760122233759,-500.0,0.00022999,2]
[390690111,1760122233769,-179.3802619,0.00022999,2]
[390690113,1760122233779,-500.0,0.00022999,2]
[390690115,1760122233788,-500.0,0.00022999,2]
[390690117,1760122233797,-500.0,0.00022999,2]
[390690119,1760122233806,-500.0,0.00022999,2]
[390690121,1760122233816,-500.0,0.00022999,2]
[390690123,1760122233825,-500.0,0.00022999,2]
[390690125,1760122233834,-500.0,0.00022999,2]
[390690127,1760122233843,-500.0,0.00022999,2]
[390690129,1760122233853,-500.0,0.00022999,2]
[390690131,1760122233862,-500.0,0.00022999,2]
[390690133,1760122233871,-500.0,0.00022999,2]
[390690135,1760122233881,-434.43266971,0.00022999,2]
[390690137,1760122233890,-454.97275585,0.00022999,2]
[390690139,1760122233900,-500.0,0.00022999,2]
[390690141,1760122233910,-500.0,0.00022999,2]
[390690143,1760122233920,-500.0,0.00022999,2]
[390690145,1760122233930,-216.65571752,0.00022999,2]
[390690147,1760122233939,-500.0,0.00022999,2]
[390690149,1760122233949,-500.0,0.00022999,2]
[390690150,1760122233958,-500.0,0.00022999,2]
[390690152,1760122233968,-500.0,0.00022999,2]
[390690154,1760122233978,-500.0,0.00022999,2]
[390690156,1760122233988,-64505.95811099,0.00023,7]
[390690208,1760122238555,-151.0,0.00017,2]
[390690210,1760122238566,-160.0,0.00022021,2]
[390690211,1760122238576,-8046.47,0.0002288,10]
[390690212,1760122238586,-500.0,0.00022999,2]
[390690213,1760122238595,-500.0,0.00022999,2]
[390690214,1760122238605,-500.0,0.00022999,2]
[390690215,1760122238615,-211.33264677,0.00022999,2]
[390690216,1760122238638,-288.66735323,0.00022999,2]
[390690217,1760122238648,-500.0,0.00022999,2]
[390690218,1760122238657,-152.62868391,0.00022999,2]
[390690219,1760122238667,-500.0,0.00022999,2]
[390690220,1760122238677,-500.0,0.00022999,2]
[390690221,1760122238687,-500.0,0.00022999,2]
[390690222,1760122238697,-500.0,0.00022999,2]
[390690223,1760122238707,-500.0,0.00022999,2]
[390690224,1760122238716,-500.0,0.00022999,2]
[390690225,1760122238726,-34913.4808178,0.00023,7]
[390690226,1760122238736,-1041.66666667,0.00023,7]
[390690227,1760122238746,-160.0,0.00023,7]
[390690228,1760122238756,-300.0,0.00023,2]
[390690229,1760122238766,-300.0,0.00023,2]
[390690230,1760122238775,-11403.33618473,0.00023,7]
[390690231,1760122238785,-298.03512572,0.00023,7]
[390690232,1760122238795,-200.0,0.00023,10]
[390690233,1760122238805,-200.0,0.00023,10]
[390690234,1760122238815,-1041.66666667,0.00023,10]
[390690235,1760122238825,-660.0,0.00023025,2]
[390690236,1760122238834,-151.0,0.000234,6]
[390690237,1760122238844,-500.0,0.00023421,2]
[390690238,1760122238853,-268.0,0.00023545,2]
[390690239,1760122238863,-760.0,0.00023573,2]
[390690240,1760122238873,-166.40526305,0.00023584,2]
[390690241,1760122238883,-151.0,0.000236,8]
[390690242,1760122238893,-1041.66666667,0.000237,7]
[390690243,1760122238903,-160.0,0.000237,7]
[390690244,1760122238912,-1111.47509743,0.000237,2]
[390690245,1760122238922,-298.03512572,0.000237,7]
[390690246,1760122238931,-151.0,0.000238,6]
[390690247,1760122238942,-151.0,0.000239,5]
[390690248,1760122238951,-500.0,0.00023973,2]
[390690249,1760122238961,-500.27841147,0.00023973,2]
[390690250,1760122238971,-1111.47509742,0.00023975,2]
[390690251,1760122238980,-151.0,0.0002399,7]
[390690252,1760122238990,-151.0,0.0002399,7]
[390690253,1760122239002,-151.0,0.0002399,7]
[390690254,1760122239012,-151.0,0.0002399,7]
[390690255,1760122239021,-151.0,0.0002399,7]
[390690256,1760122239030,-160.0,0.00024,7]
[390690257,1760122239040,-500.0,0.00024,2]
[390690258,1760122239049,-500.0,0.00024,2]
[390690259,1760122239061,-500.0,0.00024,2]
[390690260,1760122239070,-500.0,0.00024,2]
[390690261,1760122239079,-500.0,0.00024,2]
[390690262,1760122239089,-500.0,0.00024,2]
[390690263,1760122239098,-500.0,0.00024,2]
[390690264,1760122239107,-500.0,0.00024,2]
[390690265,1760122239116,-500.0,0.00024,2]
[390690266,1760122239126,-500.0,0.00024,2]
[390690267,1760122239137,-479.85207365,0.00024,2]
[390690268,1760122239150,-500.80546431,0.00024,2]
[390690269,1760122239160,-500.0,0.00024,2]
[390690270,1760122239169,-575.687,0.00024079,5]
[390690271,1760122239179,-151.0,0.000241,7]
[390690272,1760122239188,-300.0,0.00024121,2]
[390690273,1760122239199,-1111.47509742,0.0002425,2]
[390690274,1760122239208,-151.0,0.000243,9]
[390690275,1760122239218,-2125.52,0.00024303,2]
[390690276,1760122239227,-500.0,0.0002432,2]
[390690277,1760122239237,-2373.5,0.0002436,3]
[390690278,1760122239248,-1642.94,0.0002436,3]
[390690279,1760122239258,-821.46,0.0002436,3]
[390690280,1760122239268,-410.74,0.0002436,3]
[390690281,1760122239277,-160.0,0.000244,7]
[390690282,1760122239287,-151.0,0.000244,10]
[390690283,1760122239296,-151.0,0.000245,10]
[390690284,1760122239305,-1111.47509742,0.00024525,2]
[390690285,1760122239315,-1000.0,0.00024548,2]
[390690286,1760122239324,-500.0,0.00024548,2]
[390690287,1760122239333,-500.0,0.00024592,2]
[390690288,1760122239342,-151.0,0.000246,10]
[390690289,1760122239352,-151.0,0.000247,8]
[390690290,1760122239361,-10104.32779349,0.000247,2]
[390690291,1760122239371,-151.0,0.000248,9]
[390690292,1760122239380,-1111.47509742,0.000248,2]
[390690293,1760122239389,-151.0,0.000248,7]
[390690294,1760122239398,-151.0,0.000248,7]
[390690295,1760122239407,-152.068633,0.000248,7]
[390690296,1760122239416,-56284.7899946,0.000248,2]
[390690297,1760122239425,-151.0,0.000248,7]
[390690298,1760122239434,-151.0,0.000248,7]
[390690299,1760122239444,-151.0,0.000248,7]
[390690300,1760122239453,-151.0,0.000248,7]
[390690301,1760122239463,-244.752554,0.000248,7]
[390690302,1760122239472,-244.752554,0.000248,7]
[390690303,1760122239481,-151.0,0.000248,7]
[390690304,1760122239490,-151.0,0.000248,7]
[390690305,1760122239501,-244.752554,0.000248,7]
[390690306,1760122239512,-151.0,0.000248,7]
[390690307,1760122239522,-244.752554,0.000248,7]
[390690308,1760122239531,-151.0,0.000248,7]
[390690309,1760122239540,-151.0,0.000248,7]
[390690310,1760122239549,-151.0,0.000248,7]
[390690311,1760122239559,-151.0,0.000248,7]
[390690312,1760122239568,-151.0,0.000248,7]
[390690313,1760122239577,-151.0,0.000248,7]
[390690314,1760122239586,-151.0,0.000248,7]
[390690315,1760122239595,-151.0,0.000248,7]
[390690316,1760122239604,-151.0,0.000248,7]
[390690317,1760122239613,-151.0,0.000248,7]
[390690318,1760122239623,-214.02,0.00024804,2]
[390690319,1760122239632,-151.0,0.00024862,7]
[390690320,1760122239642,-980.0,0.00024864,2]
[390690321,1760122239651,-411.0,0.00024864,2]
[390690322,1760122239661,-2159.0,0.00024864,2]
[390690323,1760122239670,-630.0,0.00024864,2]
[390690324,1760122239681,-500.0,0.00024873,2]
[390690325,1760122239690,-500.0,0.00024873,2]
[390690326,1760122239700,-639.78746171,0.00024873,2]
[390690327,1760122239709,-500.0,0.00024873,2]
[390690328,1760122239720,-500.0,0.00024873,2]
[390690329,1760122239729,-500.0,0.00024873,2]
[390690330,1760122239738,-500.0,0.00024873,2]
[390690331,1760122239750,-580.88296418,0.00024873,2]
[390690332,1760122239759,-500.0,0.00024873,2]
[390690333,1760122239769,-500.0,0.00024873,2]
[390690334,1760122239779,-500.0,0.00024873,2]
[390690335,1760122239788,-500.0,0.00024873,2]
[390690336,1760122239797,-500.0,0.00024873,2]
[390690337,1760122239806,-500.0,0.00024873,2]
[390690338,1760122239816,-500.0,0.00024873,2]
[390690339,1760122239826,-500.0,0.00024873,2]
[390690340,1760122239836,-341.6340202,0.00024873,2]
[390690341,1760122239845,-500.0,0.00024873,2]
[390690342,1760122239855,-500.0,0.00024873,2]
[390690343,1760122239864,-500.0,0.00024873,2]
[390690344,1760122239873,-500.0,0.00024873,2]
[390690345,1760122239882,-500.0,0.00024873,2]
[390690346,1760122239891,-440.7161878,0.00024873,2]
[390690347,1760122239901,-500.0,0.00024873,2]
[390690348,1760122239911,-507.21746052,0.00024873,2]
[390690349,1760122239920,-500.78946217,0.00024873,2]
[390690350,1760122239930,-151.0,0.00024873,7]
[390690351,1760122239939,-151.0,0.00024873,7]
[390690352,1760122239948,-151.0,0.00024873,7]
[390690353,1760122239958,-177.48307072,0.0002489,2]
[390690354,1760122239968,-9380.79833243,0.0002489,2]
[390690355,1760122239978,-500.0,0.000249,5]
[390690356,1760122239987,-151.0,0.000249,7]
[390690357,1760122239998,-151.0,0.000249,7]
[390690358,1760122240008,-151.506493,0.000249,7]
[390690359,1760122240017,-151.0,0.000249,7]
[390690360,1760122240027,-151.0,0.000249,7]
[390690361,1760122240036,-151.0,0.000249,7]
[390690362,1760122240046,-151.0,0.000249,7]
[390690363,1760122240057,-151.0,0.000249,7]
[390690364,1760122240069,-151.0,0.000249,7]
[390690365,1760122240079,-151.0,0.000249,7]
[390690366,1760122240089,-151.0,0.000249,7]
[390690367,1760122240099,-151.0,0.000249,7]
[390690368,1760122240109,-151.0,0.000249,7]
[390690369,1760122240119,-151.0,0.000249,7]
[390690370,1760122240129,-151.0,0.000249,7]
[390690371,1760122240140,-151.0,0.000249,7]
[390690372,1760122240149,-151.0,0.000249,7]
[390690373,1760122240158,-151.0,0.000249,7]
[390690374,1760122240167,-151.0,0.000249,7]
[390690376,1760122240176,-151.0,0.000249,7]
[390690378,1760122240186,-151.0,0.000249,7]
[390690379,1760122240196,-151.0,0.000249,7]
[390690380,1760122240205,-151.0,0.000249,7]
[390690381,1760122240214,-151.0,0.000249,7]
[390690382,1760122240225,-151.785123,0.000249,7]
[390690383,1760122240234,-151.0,0.000249,7]
[390690384,1760122240244,-151.0,0.000249,7]
[390690385,1760122240254,-151.0,0.000249,7]
[390690386,1760122240263,-151.0,0.000249,7]
[390690387,1760122240272,-151.0,0.000249,7]
[390690388,1760122240282,-151.824686,0.000249,7]
[390690389,1760122240291,-151.0,0.000249,7]
[390690391,1760122240300,-151.0,0.000249,7]
[390690392,1760122240310,-170.783074,0.000249,7]
[390690393,1760122240319,-151.0,0.000249,7]
[390690394,1760122240328,-151.0,0.000249,7]
[390690395,1760122240337,-151.0,0.000249,2]
[390690397,1760122240347,-151.638162,0.000249,7]
[390690399,1760122240356,-151.0,0.000249,7]
[390690401,1760122240365,-151.859235,0.000249,7]
[390690403,1760122240374,-151.0,0.000249,7]
[390690405,1760122240383,-151.0,0.000249,7]
[390690407,1760122240392,-614912.340039,0.000249,2]
[390690409,1760122240401,-151.0,0.000249,7]
[390690411,1760122240410,-151.0,0.000249,7]
[390690413,1760122240419,-151.0,0.000249,7]
[390690415,1760122240429,-151.0,0.000249,7]
[390690417,1760122240437,-244.752554,0.000249,7]
[390690419,1760122240446,-244.752554,0.000249,7]
[390690421,1760122240456,-151.0,0.000249,7]
[390690423,1760122240465,-213.332076,0.000249,7]
[390690425,1760122240475,-244.752554,0.000249,7]
[390690427,1760122240484,-151.0,0.000249,7]
[390690429,1760122240493,-244.752554,0.000249,7]
[390690431,1760122240504,-151.0,0.000249,7]
[390690433,1760122240514,-151.0,0.000249,7]
[390690435,1760122240523,-151.0,0.000249,7]
[390690437,1760122240532,-151.0,0.000249,7]
[390690439,1760122240542,-151.0,0.000249,7]
[390690441,1760122240551,-151.0,0.000249,7]
[390690443,1760122240560,-151.0,0.000249,7]
[390690445,1760122240569,-151.0,0.000249,7]
[390690447,1760122240579,-151.0,0.000249,7]
[390690449,1760122240588,-209.625217,0.000249,7]
[390690451,1760122240598,-151.0,0.000249,7]
[390690453,1760122240607,-152.65661,0.000249,7]
[390690455,1760122240616,-151.0,0.000249,7]
[390690457,1760122240626,-1679.992091,0.000249,7]
[390690459,1760122240635,-151.0,0.000249,7]
[390690461,1760122240645,-1679.992091,0.000249,7]
[390690463,1760122240654,-151.0,0.000249,7]
[390690465,1760122240664,-1679.992091,0.000249,7]
[390690467,1760122240673,-1679.992091,0.000249,7]
[390690469,1760122240683,-151.0,0.000249,7]
[390690471,1760122240692,-151.0,0.000249,7]
[390690473,1760122240701,-151.0,0.000249,7]
[390690475,1760122240710,-151.0,0.000249,7]
[390690477,1760122240720,-151.0,0.000249,7]
[390690479,1760122240729,-151.0,0.000249,7]
[390690481,1760122240739,-552.88844342,0.00024973,2]
[390690483,1760122240752,-500.0,0.00024973,2]
[390690485,1760122240762,-500.0,0.00024973,2]
[390690487,1760122240772,-500.0,0.00024973,2]
[390690489,1760122240781,-18761.5966649,0.0002498,2]
[390690491,1760122240791,-151.0,0.0002499,7]
[390690493,1760122240800,-151.0,0.0002499,7]
[390690495,1760122240810,-151.0,0.0002499,7]
[390690497,1760122240819,-151.321248,0.0002499,7]
[390690499,1760122240829,-301.99999998,0.0002499,7]
[390690501,1760122240839,-151.585028,0.0002499,7]
[390690503,1760122240850,-151.0,0.0002499,7]
[390690529,1760122241019,-152.357197,0.0002499,7]
[390690531,1760122241029,-151.0,0.0002499,7]
[390690532,1760122241039,-151.0,0.0002499,7]
[390690534,1760122241048,-151.0,0.0002499,7]
[390690537,1760122241061,-151.0,0.0002499,7]
[390690539,1760122241071,-151.0,0.0002499,7]
[390690541,1760122241080,-151.0,0.0002499,7]
[390690543,1760122241089,-151.0,0.0002499,7]
[390690545,1760122241099,-222.945534,0.0002499,7]
[390690546,1760122241108,-151.0,0.0002499,7]
[390690549,1760122241118,-151.0,0.0002499,7]
[390690550,1760122241127,-151.0,0.0002499,7]
[390690553,1760122241147,-151.0,0.0002499,7]
[390690554,1760122241162,-286.417008,0.0002499,7]
[390690556,1760122241171,-151.0,0.0002499,7]
[390690558,1760122241180,-100000.0,0.0002499,2]
[390690560,1760122241190,-151.0,0.0002499,2]
[390690562,1760122241199,-151.0,0.0002499,7]
[390690564,1760122241208,-151.0,0.0002499,7]
[390690567,1760122241218,-9380.79833243,0.0002499,2]
[390690568,1760122241227,-151.0,0.0002499,7]
[390690570,1760122241235,-244.752554,0.0002499,7]
[390690573,1760122241247,-244.752554,0.0002499,7]
[390690575,1760122241256,-151.0,0.0002499,7]
[390690576,1760122241265,-244.752554,0.0002499,7]
[390690578,1760122241275,-244.752554,0.0002499,7]
[390690580,1760122241283,-151.0,0.0002499,7]
[390690582,1760122241292,-232.219112,0.0002499,7]
[390690584,1760122241302,-151.0,0.0002499,7]
[390690586,1760122241311,-151.0,0.0002499,7]
[390690588,1760122241320,-151.0,0.0002499,7]
[390690590,1760122241329,-171.422144,0.0002499,7]
[390690592,1760122241338,-159.480162,0.0002499,7]
[390690594,1760122241347,-151.0,0.0002499,7]
[390690596,1760122241356,-1679.992091,0.0002499,7]
[390690598,1760122241366,-151.0,0.0002499,7]
[390690600,1760122241375,-1679.992091,0.0002499,7]
[390690603,1760122241384,-151.0,0.0002499,7]
[390690605,1760122241394,-1679.992091,0.0002499,7]
[390690607,1760122241403,-1679.992091,0.0002499,7]
[390690609,1760122241412,-151.0,0.0002499,7]
[390690611,1760122241421,-151.0,0.0002499,7]
[390690612,1760122241430,-151.0,0.0002499,7]
[390690615,1760122241440,-151.0,0.0002499,7]
[390690617,1760122241449,-151.0,0.0002499,7]
[390690618,1760122241459,-4400.04066453,0.00025,2]
[390690620,1760122241469,-151.0,0.00025075,7]
[390690622,1760122241478,-151.0,0.00025075,7]
[390690624,1760122241487,-151.929403,0.00025075,7]
[390690626,1760122241497,-151.555572,0.00025075,7]
[390690628,1760122241506,-151.0,0.00025075,7]
[390690630,1760122241515,-151.0,0.00025075,7]
[390690632,1760122241525,-1500.0,0.00025096,2]
[390690634,1760122241534,-151.0,0.000251,11]
[390690636,1760122241544,-500.0,0.00025174,5]
[390690638,1760122241553,-151.0,0.000254,17]
[390690640,1760122241563,-1000.0,0.00025421,2]
[390690642,1760122241572,-1000.0,0.00025421,2]
[390690644,1760122241581,-500.0,0.00025421,2]
[390690646,1760122241590,-1000.0,0.00025421,2]
[390690648,1760122241599,-1003.6411007,0.00025421,2]
[390690650,1760122241608,-1000.0,0.00025421,2]
[390690652,1760122241618,-151.0,0.00025421,7]
[390690654,1760122241627,-151.0,0.00025421,7]
[390690656,1760122241637,-1000.0,0.00025521,2]
[390690659,1760122241646,-1000.0,0.00025521,2]
[390690660,1760122241656,-2000.0,0.00025644,2]
[390690662,1760122241665,-151.0,0.000257,16]
[390690665,1760122241676,-500.0,0.00025752,2]
[390690667,1760122241685,-500.0,0.00025821,2]
[390690669,1760122241694,-496.5300356,0.00025968,2]
[390690671,1760122241703,-387.71567513,0.00025968,2]
[390690672,1760122241713,-500.0,0.00025968,2]
[390690675,1760122241722,-208.468505,0.0002599,7]
[390690677,1760122241734,-151.0,0.0002599,7]
[390690679,1760122241743,-151.0,0.0002599,7]
[390690681,1760122241755,-151.0,0.0002599,7]
[390690683,1760122241764,-28142.3949973,0.0002599,2]
[390690685,1760122241773,-23095.97892836,0.00026,60]
[390690687,1760122241782,-39000.000001,0.00026,30]
[390690689,1760122241792,-151.0,0.00026,7]
[390690691,1760122241801,-151.0,0.00026,7]
[390690693,1760122241810,-151.0,0.00026,7]
[390690695,1760122241820,-151.0,0.00026,7]
[390690697,1760122241830,-151.0,0.00026,7]
[390690699,1760122241840,-151.0,0.00026,7]
[390690701,1760122241849,-151.0,0.00026,7]
[390690703,1760122241859,-151.0,0.00026,7]
[390690705,1760122241868,-151.0,0.00026,7]
[390690707,1760122241877,-151.0,0.00026,7]
[390690709,1760122241887,-151.0,0.00026,7]
[390690711,1760122241896,-151.0,0.00026,7]
[390690714,1760122241906,-151.0,0.00026,7]
[390690716,1760122241915,-1041.66666667,0.00026,30]
[390690717,1760122241924,-151.0,0.00026,7]
[390690719,1760122241933,-298.03512572,0.00026,30]
[390690722,1760122241944,-151.0,0.00026,2]
[390690724,1760122241954,-1000.0,0.00026,2]
[390690726,1760122241963,-1000.0,0.00026,2]
[390690728,1760122241972,-1000.0,0.00026,2]
[390690730,1760122241981,-1000.0,0.00026,2]
[390690732,1760122241990,-1000.0,0.00026,2]
[390690734,1760122242002,-1000.0,0.00026,2]
[390690736,1760122242011,-1000.0,0.00026,2]
[390690738,1760122242020,-1000.0,0.00026,2]
[390690740,1760122242029,-1000.0,0.00026,2]
[390690741,1760122242038,-1000.0,0.00026,2]
[390690744,1760122242047,-1000.0,0.00026,2]
[390690746,1760122242059,-1000.0,0.00026,2]
[390690748,1760122242072,-1000.0,0.00026,2]
[390690749,1760122242081,-1000.0,0.00026,2]
[390690751,1760122242091,-1000.0,0.00026,2]
[390690754,1760122242100,-1000.0,0.00026,2]
[390690755,1760122242111,-1000.0,0.00026,2]
[390690757,1760122242120,-1000.0,0.00026,2]
[390690759,1760122242128,-1000.0,0.00026,2]
[390690761,1760122242139,-1000.0,0.00026,2]
[390690763,1760122242149,-1000.0,0.00026,2]
[390690765,1760122242162,-1000.0,0.00026,2]
[390690767,1760122242172,-1000.0,0.00026,2]
[390690769,1760122242181,-1000.0,0.00026,2]
[390690771,1760122242190,-1000.0,0.00026,2]
[390690773,1760122242199,-1000.0,0.00026,2]
[390690775,1760122242208,-1000.0,0.00026,2]
[390690777,1760122242217,-1000.0,0.00026,2]
[390690779,1760122242227,-1000.0,0.00026,2]
[390690781,1760122242236,-1000.0,0.00026,2]
[390690783,1760122242246,-1000.0,0.00026,2]
[390690785,1760122242257,-1000.0,0.00026,2]
[390690787,1760122242266,-1000.0,0.00026,2]
[390690789,1760122242276,-1000.0,0.00026,2]
[390690791,1760122242285,-1000.0,0.00026,2]
[390690793,1760122242294,-1000.0,0.00026,2]
[390690795,1760122242303,-1000.0,0.00026,2]
[390690797,1760122242312,-1000.0,0.00026,2]
[390690800,1760122242322,-1000.0,0.00026,2]
[390690802,1760122242332,-1000.0,0.00026,2]
[390690804,1760122242341,-1000.0,0.00026,2]
[390690805,1760122242351,-1000.0,0.00026,2]
[390690807,1760122242360,-1000.0,0.00026,2]
[390690809,1760122242369,-1000.0,0.00026,2]
[390690811,1760122242379,-1000.0,0.00026,2]
[390690813,1760122242388,-1000.0,0.00026,2]
[390690816,1760122242397,-1000.0,0.00026,2]
[390690817,1760122242406,-1000.0,0.00026,2]
[390690819,1760122242415,-1000.0,0.00026,2]
[390690822,1760122242425,-1003.4794,0.00026,2]
[390690824,1760122242435,-233.734792,0.00026,7]
[390690825,1760122242444,-244.752554,0.00026,7]
[390690827,1760122242454,-151.0,0.00026,7]
[390690829,1760122242464,-244.752554,0.00026,7]
[390690832,1760122242474,-244.752554,0.00026,7]
[390690833,1760122242483,-244.752554,0.00026,7]
[390690836,1760122242492,-151.0,0.00026,7]
[390690838,1760122242503,-160.0,0.00026,30]
[390690840,1760122242513,-151.0,0.00026,7]
[390690842,1760122242522,-151.0,0.00026,7]
[390690844,1760122242531,-151.0,0.00026,7]
[390690846,1760122242540,-151.0,0.00026,7]
[390690848,1760122242550,-1679.992091,0.00026,7]
[390690850,1760122242559,-151.0,0.00026,7]
[390690852,1760122242568,-1679.992091,0.00026,7]
[390690854,1760122242577,-151.0,0.00026,7]
[390690855,1760122242586,-1679.992091,0.00026,7]
[390690858,1760122242596,-1679.992091,0.00026,7]
[390690860,1760122242606,-151.0,0.00026,7]
[390690862,1760122242615,-151.0,0.00026,7]
[390690864,1760122242624,-215.024384,0.00026,7]
[390690865,1760122242633,-151.0,0.00026028,7]
[390690868,1760122242643,-151.0,0.00026028,7]
[390690870,1760122242652,-2656.91,0.00026038,2]
[390690871,1760122242662,-1500.0,0.00026068,2]
[390690874,1760122242671,-1500.0,0.00026068,2]
[390690876,1760122242681,-1048.0021162,0.0002611,2]
[390690877,1760122242691,-192.47399803,0.0002616,2]
[390690879,1760122242700,-2500.0,0.00026192,2]
[390690881,1760122242709,-2080.3,0.00026324,2]
[390690883,1760122242719,-152.948669,0.00026324,7]
[390690886,1760122242729,-151.0,0.00026324,7]
[390690888,1760122242740,-9380.79833243,0.00026406,2]
[390690890,1760122242752,-166.40526305,0.00026426,2]
[390690892,1760122242761,-626.96107308,0.00026616,2]
[390690894,1760122242771,-156.49,0.00026625,7]
[390690896,1760122242780,-850.98121,0.00026676,2]
[390690898,1760122242789,-226.1552,0.00026712,2]
[390690900,1760122242798,-3000.0,0.0002674,2]
[390690902,1760122242808,-2819.74286723,0.000268,7]
[390690904,1760122242817,-10104.32779349,0.00026835,2]
[390690906,1760122242826,-244.752554,0.00026835,7]
[390690908,1760122242835,-151.0,0.00026835,7]
[390690910,1760122242846,-244.752554,0.00026835,7]
[390690912,1760122242857,-244.752554,0.00026835,7]
[390690914,1760122242866,-244.752561,0.00026835,7]
[390690916,1760122242876,-151.0,0.00026835,7]
[390690917,1760122242885,-151.0,0.00026835,7]
[390690920,1760122242894,-151.0,0.00026835,7]
[390690921,1760122242904,-151.0,0.00026835,7]
[390690923,1760122242913,-151.0,0.00026835,7]
[390690926,1760122242924,-1679.992091,0.00026835,7]
[390690928,1760122242933,-151.0,0.00026835,7]
[390690930,1760122242943,-1679.992091,0.00026835,7]
[390690931,1760122242952,-262.481212,0.00026835,7]
[390690933,1760122242962,-1679.992091,0.00026835,7]
[390690936,1760122242971,-1679.992091,0.00026835,7]
[390690937,1760122242980,-151.0,0.00026835,7]
[390690939,1760122242989,-500.0,0.00026848,2]
[390690941,1760122242999,-151.0,0.00026885,7]
[390690943,1760122243008,-151.0,0.00026885,7]
[390690945,1760122243017,-151.0,0.00026885,7]
[390690947,1760122243026,-151.0,0.00026885,7]
[390690949,1760122243035,-151.0,0.00026885,7]
[390690951,1760122243045,-151.0,0.00026885,7]
[390690954,1760122243054,-151.0,0.00026885,7]
[390690956,1760122243069,-151.0,0.00026885,7]
[390690958,1760122243078,-151.0,0.00026885,7]
[390690960,1760122243087,-168.0,0.00026976,2]
[390690962,1760122243097,-158.0,0.00026986,22]
[390690964,1760122243107,-9380.79833243,0.0002699,2]
[390690966,1760122243116,-22541.97202982,0.00027,30]
[390690968,1760122243126,-3410.97742788,0.00027,5]
[390690970,1760122243136,-600.0,0.00027,14]
[390690972,1760122243146,-298.03512572,0.00027,30]
[390690974,1760122243155,-160.0,0.00027,30]
[390690976,1760122243164,-1041.66666667,0.00027,30]
[390690978,1760122243175,-168.0,0.00027008,2]
[390690980,1760122243184,-500.0,0.00027112,2]
[390690982,1760122243193,-1005.7224765,0.00027123,3]
[390690984,1760122243202,-3500.0,0.00027288,2]
[390690986,1760122243211,-9380.79833243,0.00027387,2]
[390690988,1760122243219,-198.25310071,0.0002739,2]
[390690991,1760122243228,-162.18406984,0.0002739,7]